[Event "Titled Tuesday Blitz November 08 Late 2022"]
[White "Golubev, Mikhail"]
[Black "Fernandez Guillen, Ernesto J."]
[WhiteFideId "14100983"]
[BlackFideId "3512428"]
[WhiteElo "2374"]
[BlackElo "2450"]
[Result "0-1"]
[Round "04"]
[TimeControl "180+1"]
[Date "2022.11.09"]
[WhiteClock "0:00:01"]
[BlackClock "0:00:20"]

1. e4 {[%clk 0:03:00]}  e5 {[%clk 0:02:59]} 2. d4 {[%clk 0:03:00]}  exd4 {[%clk 0:02:59]} 3. Qxd4 {[%clk 0:03:00]}  Nc6 {[%clk 0:03:00]} 4. Qd3 {[%clk 0:03:00]}  Nf6 {[%clk 0:03:00]} 5. Nc3 {[%clk 0:02:59]}  Bb4 {[%clk 0:03:00]} 6. Bd2 {[%clk 0:02:58]}  O-O {[%clk 0:03:00]} 7. O-O-O {[%clk 0:02:58]}  Re8 {[%clk 0:03:00]} 8. Nge2 {[%clk 0:02:57]}  d6 {[%clk 0:02:47]} 9. h3 {[%clk 0:02:57]}  Ne5 {[%clk 0:02:44]} 10. Qg3 {[%clk 0:02:56]}  Nc4 {[%clk 0:02:43]} 11. Bg5 {[%clk 0:02:49]}  c6 {[%clk 0:02:02]} 12. Nf4 {[%clk 0:02:15]}  Bxc3 {[%clk 0:01:28]} 13. Qxc3 {[%clk 0:02:12]}  Ne5 {[%clk 0:01:14]} 14. Qa3 {[%clk 0:00:18]}  c5 {[%clk 0:00:47]} 15. Nd5 {[%clk 0:00:13]}  Ned7 {[%clk 0:00:47]} 16. Qg3 {[%clk 0:00:11]}  Nxe4 {[%clk 0:00:37]} 17. Bxd8 {[%clk 0:00:09]}  Nxg3 {[%clk 0:00:37]} 18. fxg3 {[%clk 0:00:08]}  Rxd8 {[%clk 0:00:37]} 19. Ne7+ {[%clk 0:00:08]}  Kf8 {[%clk 0:00:36]} 20. Nxc8 {[%clk 0:00:08]}  Raxc8 {[%clk 0:00:36]} 21. Rxd6 {[%clk 0:00:08]}  Ne5 {[%clk 0:00:35]} 22. Rxd8+ {[%clk 0:00:08]}  Rxd8 {[%clk 0:00:35]} 23. Be2 {[%clk 0:00:08]}  f6 {[%clk 0:00:35]} 24. Re1 {[%clk 0:00:07]}  b6 {[%clk 0:00:34]} 25. Rd1 {[%clk 0:00:07]}  Rxd1+ {[%clk 0:00:34]} 26. Kxd1 {[%clk 0:00:08]}  Ke7 {[%clk 0:00:35]} 27. Kd2 {[%clk 0:00:08]}  g6 {[%clk 0:00:29]} 28. Ke3 {[%clk 0:00:08]}  f5 {[%clk 0:00:27]} 29. c3 {[%clk 0:00:07]}  Kf6 {[%clk 0:00:27]} 30. a3 {[%clk 0:00:05]}  h6 {[%clk 0:00:20]} 31. b4 {[%clk 0:00:01]}  g5 {[%clk 0:00:20]} 0-1


[Site "https://www.chess.com"]

[Event "Titled Tuesday Blitz November 08 Late 2022"]
[White "Gonzalez, Francisco Silva"]
[Black "Bilan, Danila"]
[WhiteFideId "1512285"]
[BlackFideId "24161918"]
[WhiteElo "2159"]
[BlackElo "2173"]
[Result "1/2-1/2"]
[Round "04"]
[TimeControl "180+1"]
[Date "2022.11.09"]
[WhiteClock "0:00:13"]
[BlackClock "0:00:07"]

1. d4 {[%clk 0:03:00]}  d5 {[%clk 0:02:59]} 2. c4 {[%clk 0:02:53]}  c6 {[%clk 0:02:58]} 3. Nc3 {[%clk 0:02:50]}  Nf6 {[%clk 0:02:57]} 4. e3 {[%clk 0:02:39]}  e6 {[%clk 0:02:57]} 5. Nf3 {[%clk 0:02:39]}  Nbd7 {[%clk 0:02:54]} 6. Bd3 {[%clk 0:02:38]}  Bd6 {[%clk 0:02:54]} 7. O-O {[%clk 0:02:31]}  O-O {[%clk 0:02:53]} 8. e4 {[%clk 0:02:30]}  dxc4 {[%clk 0:02:52]} 9. Bxc4 {[%clk 0:02:30]}  e5 {[%clk 0:02:53]} 10. Bg5 {[%clk 0:02:29]}  Qc7 {[%clk 0:02:52]} 11. h3 {[%clk 0:02:29]}  exd4 {[%clk 0:02:45]} 12. Nxd4 {[%clk 0:02:28]}  Ne5 {[%clk 0:02:45]} 13. Bb3 {[%clk 0:02:28]}  Ng6 {[%clk 0:02:35]} 14. Bxf6 {[%clk 0:02:27]}  gxf6 {[%clk 0:02:36]} 15. Qh5 {[%clk 0:02:24]}  Be5 {[%clk 0:02:14]} 16. Rad1 {[%clk 0:02:22]}  Kh8 {[%clk 0:02:08]} 17. Nf3 {[%clk 0:02:21]}  Rg8 {[%clk 0:01:38]} 18. Kh1 {[%clk 0:02:03]}  Be6 {[%clk 0:01:15]} 19. Nxe5 {[%clk 0:02:01]}  fxe5 {[%clk 0:01:12]} 20. Ne2 {[%clk 0:01:53]}  Qe7 {[%clk 0:01:02]} 21. Bxe6 {[%clk 0:01:49]}  fxe6 {[%clk 0:00:55]} 22. Ng3 {[%clk 0:01:44]}  Rad8 {[%clk 0:00:52]} 23. a3 {[%clk 0:01:40]}  Qf6 {[%clk 0:00:45]} 24. Qh6 {[%clk 0:01:20]}  Rxd1 {[%clk 0:00:29]} 25. Rxd1 {[%clk 0:01:20]}  Qxf2 {[%clk 0:00:29]} 26. Nh5 {[%clk 0:01:11]}  Qf7 {[%clk 0:00:22]} 27. Qg5 {[%clk 0:01:02]}  Rf8 {[%clk 0:00:15]} 28. Rd8 {[%clk 0:00:58]}  Kg8 {[%clk 0:00:10]} 29. Nf6+ {[%clk 0:00:57]}  Kg7 {[%clk 0:00:09]} 30. Nh5+ {[%clk 0:00:52]}  Kh8 {[%clk 0:00:10]} 31. a4 {[%clk 0:00:46]}  Kg8 {[%clk 0:00:07]} 32. a5 {[%clk 0:00:46]}  b6 {[%clk 0:00:08]} 33. a6 {[%clk 0:00:44]}  c5 {[%clk 0:00:08]} 34. Rd6 {[%clk 0:00:41]}  Qf1+ {[%clk 0:00:08]} 35. Kh2 {[%clk 0:00:41]}  Qf7 {[%clk 0:00:08]} 36. b3 {[%clk 0:00:39]}  Kh8 {[%clk 0:00:08]} 37. Rd8 {[%clk 0:00:36]}  Rxd8 {[%clk 0:00:06]} 38. Qxd8+ {[%clk 0:00:36]}  Nf8 {[%clk 0:00:07]} 39. Qg5 {[%clk 0:00:34]}  Qg6 {[%clk 0:00:05]} 40. Qxe5+ {[%clk 0:00:33]}  Kg8 {[%clk 0:00:06]} 41. Nf6+ {[%clk 0:00:32]}  Kf7 {[%clk 0:00:06]} 42. Ng4 {[%clk 0:00:30]}  Kg8 {[%clk 0:00:06]} 43. Nf6+ {[%clk 0:00:20]}  Kf7 {[%clk 0:00:06]} 44. Ng4 {[%clk 0:00:18]}  Kg8 {[%clk 0:00:05]} 45. Qf4 {[%clk 0:00:18]}  h5 {[%clk 0:00:05]} 46. Nf6+ {[%clk 0:00:17]}  Kg7 {[%clk 0:00:04]} 47. e5 {[%clk 0:00:17]}  Nh7 {[%clk 0:00:03]} 48. Ne4 {[%clk 0:00:16]}  Nf8 {[%clk 0:00:03]} 49. Nd6 {[%clk 0:00:16]}  Nd7 {[%clk 0:00:03]} 50. h4 {[%clk 0:00:13]}  Nf8 {[%clk 0:00:02]} 51. Nb7 {[%clk 0:00:12]}  Nd7 {[%clk 0:00:03]} 52. Nd6 {[%clk 0:00:12]}  Qg4 {[%clk 0:00:03]} 53. Qf7+ {[%clk 0:00:12]}  Kh6 {[%clk 0:00:03]} 54. Qxd7 {[%clk 0:00:11]}  Qxh4+ {[%clk 0:00:04]} 55. Kg1 {[%clk 0:00:11]}  Qe1+ {[%clk 0:00:04]} 56. Kh2 {[%clk 0:00:12]}  Qh4+ {[%clk 0:00:05]} 57. Kg1 {[%clk 0:00:12]}  Qe1+ {[%clk 0:00:06]} 58. Kh2 {[%clk 0:00:13]}  Qh4+ {[%clk 0:00:07]} 1/2-1/2


[Site "https://www.chess.com"]

[Event "Titled Tuesday Blitz November 08 Late 2022"]
[White "Goryachkina, Aleksandra"]
[Black "Hryzlova, Sofiia"]
[WhiteFideId "4147103"]
[BlackFideId "14174669"]
[WhiteElo "2484"]
[BlackElo "1992"]
[Result "0-1"]
[Round "04"]
[TimeControl "180+1"]
[Date "2022.11.09"]
[WhiteClock "0:00:14"]
[BlackClock "0:00:53"]

1. e4 {[%clk 0:02:59]}  e5 {[%clk 0:02:58]} 2. Nf3 {[%clk 0:02:59]}  Nc6 {[%clk 0:02:59]} 3. d4 {[%clk 0:02:57]}  exd4 {[%clk 0:03:00]} 4. Nxd4 {[%clk 0:02:58]}  Bc5 {[%clk 0:02:59]} 5. Be3 {[%clk 0:02:56]}  Qf6 {[%clk 0:02:59]} 6. c3 {[%clk 0:02:56]}  Nge7 {[%clk 0:02:58]} 7. Bb5 {[%clk 0:02:54]}  Bb6 {[%clk 0:02:54]} 8. O-O {[%clk 0:02:52]}  O-O {[%clk 0:02:54]} 9. a4 {[%clk 0:02:51]}  Nxd4 {[%clk 0:02:38]} 10. cxd4 {[%clk 0:02:49]}  c6 {[%clk 0:02:38]} 11. Be2 {[%clk 0:02:43]}  d5 {[%clk 0:02:36]} 12. e5 {[%clk 0:02:25]}  Qe6 {[%clk 0:02:32]} 13. a5 {[%clk 0:02:24]}  Bc7 {[%clk 0:02:31]} 14. Nd2 {[%clk 0:02:13]}  Nf5 {[%clk 0:02:30]} 15. Ra3 {[%clk 0:02:00]}  f6 {[%clk 0:02:29]} 16. exf6 {[%clk 0:01:45]}  Qxf6 {[%clk 0:02:25]} 17. Nf3 {[%clk 0:01:24]}  a6 {[%clk 0:02:04]} 18. Bg5 {[%clk 0:00:58]}  Qg6 {[%clk 0:02:02]} 19. Bc1 {[%clk 0:00:49]}  Qd6 {[%clk 0:01:26]} 20. g3 {[%clk 0:00:41]}  Qf6 {[%clk 0:01:10]} 21. b4 {[%clk 0:00:28]}  Nd6 {[%clk 0:01:07]} 22. Ne5 {[%clk 0:00:25]}  Bh3 {[%clk 0:01:05]} 23. Ng4 {[%clk 0:00:20]}  Qf5 {[%clk 0:00:52]} 24. Rf3 {[%clk 0:00:17]}  Qe4 {[%clk 0:00:52]} 25. Rxf8+ {[%clk 0:00:14]}  Rxf8 {[%clk 0:00:53]} 26. Re1 {[%clk 0:00:14]}  Qg2# {[%clk 0:00:53]} 0-1


[Site "https://www.chess.com"]

[Event "Titled Tuesday Blitz November 08 Late 2022"]
[White "Guha, Eshan"]
[Black "Maze, Sebastien"]
[WhiteFideId "30958628"]
[BlackFideId "613762"]
[WhiteElo "2331"]
[BlackElo "2430"]
[Result "1-0"]
[Round "04"]
[TimeControl "180+1"]
[Date "2022.11.09"]
[WhiteClock "0:00:35"]
[BlackClock "0:00:03"]

1. d4 {[%clk 0:03:00]}  Nf6 {[%clk 0:02:57]} 2. c4 {[%clk 0:03:00]}  g6 {[%clk 0:02:39]} 3. g3 {[%clk 0:03:00]}  Bg7 {[%clk 0:02:36]} 4. Bg2 {[%clk 0:03:00]}  O-O {[%clk 0:02:36]} 5. Nc3 {[%clk 0:03:01]}  d6 {[%clk 0:02:36]} 6. Nf3 {[%clk 0:03:01]}  Nc6 {[%clk 0:02:33]} 7. O-O {[%clk 0:03:01]}  e5 {[%clk 0:02:34]} 8. dxe5 {[%clk 0:03:00]}  Nxe5 {[%clk 0:02:33]} 9. Nxe5 {[%clk 0:03:00]}  dxe5 {[%clk 0:02:33]} 10. Bg5 {[%clk 0:03:01]}  Qxd1 {[%clk 0:01:59]} 11. Rfxd1 {[%clk 0:03:00]}  c6 {[%clk 0:01:59]} 12. Rd6 {[%clk 0:02:46]}  Be6 {[%clk 0:01:55]} 13. Rad1 {[%clk 0:02:37]}  h6 {[%clk 0:01:54]} 14. Bxf6 {[%clk 0:02:30]}  Bxf6 {[%clk 0:01:52]} 15. Ne4 {[%clk 0:02:24]}  Be7 {[%clk 0:01:50]} 16. R6d2 {[%clk 0:02:17]}  Bxc4 {[%clk 0:01:37]} 17. Rd7 {[%clk 0:02:17]}  Rfd8 {[%clk 0:01:36]} 18. Nc3 {[%clk 0:02:10]}  Kf8 {[%clk 0:01:16]} 19. Rxb7 {[%clk 0:02:07]}  Rxd1+ {[%clk 0:01:09]} 20. Nxd1 {[%clk 0:02:08]}  Bxe2 {[%clk 0:01:05]} 21. Nc3 {[%clk 0:02:06]}  Bc4 {[%clk 0:01:02]} 22. Bxc6 {[%clk 0:02:06]}  Rd8 {[%clk 0:01:01]} 23. b3 {[%clk 0:01:54]}  Be6 {[%clk 0:00:59]} 24. Rxa7 {[%clk 0:01:49]}  Bc5 {[%clk 0:00:56]} 25. Ra8 {[%clk 0:01:46]}  Rxa8 {[%clk 0:00:54]} 26. Bxa8 {[%clk 0:01:47]}  Ke7 {[%clk 0:00:53]} 27. Bd5 {[%clk 0:01:45]}  Bd7 {[%clk 0:00:51]} 28. Bc4 {[%clk 0:01:39]}  f5 {[%clk 0:00:49]} 29. Nd5+ {[%clk 0:01:34]}  Kd6 {[%clk 0:00:48]} 30. Nf6 {[%clk 0:01:34]}  Bc6 {[%clk 0:00:38]} 31. Ng8 {[%clk 0:01:26]}  h5 {[%clk 0:00:37]} 32. Bf7 {[%clk 0:01:25]}  g5 {[%clk 0:00:31]} 33. Bxh5 {[%clk 0:01:25]}  Bd5 {[%clk 0:00:31]} 34. Nh6 {[%clk 0:01:13]}  f4 {[%clk 0:00:27]} 35. Nf7+ {[%clk 0:01:00]}  Bxf7 {[%clk 0:00:19]} 36. Bxf7 {[%clk 0:01:01]}  e4 {[%clk 0:00:19]} 37. gxf4 {[%clk 0:00:58]}  gxf4 {[%clk 0:00:19]} 38. Bg6 {[%clk 0:00:57]}  Ke5 {[%clk 0:00:19]} 39. h4 {[%clk 0:00:53]}  f3 {[%clk 0:00:15]} 40. h5 {[%clk 0:00:53]}  e3 {[%clk 0:00:13]} 41. fxe3 {[%clk 0:00:52]}  Bxe3+ {[%clk 0:00:13]} 42. Kf1 {[%clk 0:00:52]}  Kd4 {[%clk 0:00:13]} 43. a4 {[%clk 0:00:48]}  Kc3 {[%clk 0:00:12]} 44. Bf7 {[%clk 0:00:48]}  Kb4 {[%clk 0:00:12]} 45. Bd5 {[%clk 0:00:48]}  Kc3 {[%clk 0:00:07]} 46. Bxf3 {[%clk 0:00:38]}  Kxb3 {[%clk 0:00:07]} 47. Ke2 {[%clk 0:00:38]}  Bb6 {[%clk 0:00:02]} 48. Bc6 {[%clk 0:00:38]}  Bd4 {[%clk 0:00:01]} 49. Kd3 {[%clk 0:00:37]}  Bg7 {[%clk 0:00:01]} 50. Ke4 {[%clk 0:00:36]}  Kb4 {[%clk 0:00:02]} 51. Kf5 {[%clk 0:00:36]}  Ka5 {[%clk 0:00:02]} 52. Kg6 {[%clk 0:00:36]}  Bc3 {[%clk 0:00:02]} 53. h6 {[%clk 0:00:36]}  Bd2 {[%clk 0:00:02]} 54. h7 {[%clk 0:00:36]}  Bc3 {[%clk 0:00:02]} 55. Kf7 {[%clk 0:00:35]}  Kb6 {[%clk 0:00:03]} 56. Bb5 {[%clk 0:00:35]} 1-0


[Site "https://www.chess.com"]

[Event "Titled Tuesday Blitz November 08 Late 2022"]
[White "Guimaraes, Marcelo Cunha"]
[Black "Goncalves, Davi Sulzbacher"]
[WhiteFideId "2118068"]
[BlackFideId "2154510"]
[WhiteElo "2108"]
[BlackElo "2182"]
[Result "0-1"]
[Round "04"]
[TimeControl "180+1"]
[Date "2022.11.09"]
[WhiteClock "0:00:06"]
[BlackClock "0:00:34"]

1. e4 {[%clk 0:03:00]}  c6 {[%clk 0:02:57]} 2. d4 {[%clk 0:02:58]}  d5 {[%clk 0:02:56]} 3. e5 {[%clk 0:02:56]}  Bf5 {[%clk 0:02:55]} 4. Nf3 {[%clk 0:02:56]}  e6 {[%clk 0:02:53]} 5. Be2 {[%clk 0:02:55]}  Be7 {[%clk 0:02:53]} 6. O-O {[%clk 0:02:54]}  c5 {[%clk 0:02:53]} 7. c4 {[%clk 0:02:53]}  dxc4 {[%clk 0:02:48]} 8. Bxc4 {[%clk 0:02:52]}  Nc6 {[%clk 0:02:48]} 9. d5 {[%clk 0:02:44]}  exd5 {[%clk 0:02:47]} 10. Bxd5 {[%clk 0:02:44]}  Be6 {[%clk 0:02:35]} 11. Bxe6 {[%clk 0:02:33]}  fxe6 {[%clk 0:02:36]} 12. Nc3 {[%clk 0:02:32]}  Qxd1 {[%clk 0:02:22]} 13. Rxd1 {[%clk 0:02:31]}  Rd8 {[%clk 0:02:22]} 14. Be3 {[%clk 0:02:30]}  Nh6 {[%clk 0:02:14]} 15. Ne4 {[%clk 0:02:06]}  b6 {[%clk 0:02:00]} 16. Neg5 {[%clk 0:02:00]}  Rxd1+ {[%clk 0:01:45]} 17. Rxd1 {[%clk 0:01:59]}  Nd8 {[%clk 0:01:46]} 18. h3 {[%clk 0:01:17]}  Nf5 {[%clk 0:01:40]} 19. Bf4 {[%clk 0:01:16]}  h6 {[%clk 0:01:29]} 20. Ne4 {[%clk 0:01:11]}  Rf8 {[%clk 0:01:25]} 21. Bh2 {[%clk 0:01:06]}  Nc6 {[%clk 0:01:18]} 22. Nd6+ {[%clk 0:01:02]}  Bxd6 {[%clk 0:01:17]} 23. exd6 {[%clk 0:01:02]}  Kd7 {[%clk 0:01:12]} 24. Ne5+ {[%clk 0:01:00]}  Nxe5 {[%clk 0:01:10]} 25. Bxe5 {[%clk 0:01:01]}  g5 {[%clk 0:01:03]} 26. g4 {[%clk 0:00:56]}  Nh4 {[%clk 0:01:02]} 27. Bg7 {[%clk 0:00:44]}  Rf7 {[%clk 0:00:52]} 28. Bxh6 {[%clk 0:00:39]}  Rh7 {[%clk 0:00:53]} 29. Bf8 {[%clk 0:00:39]}  Ng6 {[%clk 0:00:52]} 30. Be7 {[%clk 0:00:35]}  Nf4 {[%clk 0:00:42]} 31. h4 {[%clk 0:00:26]}  Rxh4 {[%clk 0:00:41]} 32. f3 {[%clk 0:00:14]}  Rh3 {[%clk 0:00:39]} 33. Rf1 {[%clk 0:00:12]}  Rg3+ {[%clk 0:00:35]} 34. Kf2 {[%clk 0:00:11]}  Rg2+ {[%clk 0:00:36]} 35. Ke1 {[%clk 0:00:09]}  Nd3+ {[%clk 0:00:33]} 36. Kd1 {[%clk 0:00:07]}  Nxb2+ {[%clk 0:00:33]} 37. Kc1 {[%clk 0:00:08]}  Nd3+ {[%clk 0:00:34]} 38. Kb1 {[%clk 0:00:07]}  c4 {[%clk 0:00:34]} 39. Bxg5 {[%clk 0:00:06]}  c3 {[%clk 0:00:34]} 0-1


[Site "https://www.chess.com"]

[Event "Titled Tuesday Blitz November 08 Late 2022"]
[White "Hamley, Ryan"]
[Black "Mikhailov, Viacheslav"]
[WhiteFideId "30959497"]
[BlackFideId "4187369"]
[WhiteElo "2531"]
[BlackElo "2381"]
[Result "1-0"]
[Round "04"]
[TimeControl "180+1"]
[Date "2022.11.09"]
[WhiteClock "0:00:07"]
[BlackClock "0:00:01"]

1. d4 {[%clk 0:02:59]}  Nf6 {[%clk 0:02:59]} 2. c4 {[%clk 0:02:59]}  g6 {[%clk 0:02:59]} 3. Nc3 {[%clk 0:02:59]}  Bg7 {[%clk 0:03:00]} 4. e4 {[%clk 0:02:59]}  O-O {[%clk 0:03:01]} 5. h3 {[%clk 0:02:58]}  d6 {[%clk 0:03:01]} 6. Be3 {[%clk 0:02:58]}  e5 {[%clk 0:03:01]} 7. d5 {[%clk 0:02:59]}  Nbd7 {[%clk 0:02:59]} 8. g4 {[%clk 0:02:57]}  Nc5 {[%clk 0:02:59]} 9. Qc2 {[%clk 0:02:58]}  a5 {[%clk 0:02:59]} 10. Nge2 {[%clk 0:02:58]}  b6 {[%clk 0:02:56]} 11. Ng3 {[%clk 0:02:58]}  Bd7 {[%clk 0:02:53]} 12. Be2 {[%clk 0:02:58]}  c6 {[%clk 0:02:51]} 13. Rd1 {[%clk 0:02:52]}  cxd5 {[%clk 0:02:51]} 14. cxd5 {[%clk 0:02:53]}  Rc8 {[%clk 0:02:50]} 15. Qb1 {[%clk 0:02:54]}  b5 {[%clk 0:02:37]} 16. Nxb5 {[%clk 0:02:33]}  Qb6 {[%clk 0:02:36]} 17. Nc3 {[%clk 0:02:31]}  Rb8 {[%clk 0:02:29]} 18. Rd2 {[%clk 0:02:30]}  Qb4 {[%clk 0:02:24]} 19. O-O {[%clk 0:02:24]}  a4 {[%clk 0:02:16]} 20. a3 {[%clk 0:02:19]}  Qa5 {[%clk 0:02:16]} 21. Rc2 {[%clk 0:02:20]}  Nb3 {[%clk 0:02:14]} 22. Rd1 {[%clk 0:02:04]}  Rfc8 {[%clk 0:02:08]} 23. Na2 {[%clk 0:02:00]}  Nd4 {[%clk 0:01:50]} 24. Bxd4 {[%clk 0:01:59]}  exd4 {[%clk 0:01:51]} 25. Nb4 {[%clk 0:02:00]}  Rxc2 {[%clk 0:01:19]} 26. Qxc2 {[%clk 0:01:58]}  Rc8 {[%clk 0:01:20]} 27. Qd3 {[%clk 0:01:49]}  h6 {[%clk 0:01:04]} 28. Nc2 {[%clk 0:01:44]}  Qb6 {[%clk 0:00:41]} 29. Qxd4 {[%clk 0:00:40]}  Qb7 {[%clk 0:00:36]} 30. Qb4 {[%clk 0:00:35]}  Qa7 {[%clk 0:00:30]} 31. Nd4 {[%clk 0:00:31]}  Rb8 {[%clk 0:00:30]} 32. Qd2 {[%clk 0:00:31]}  Nh7 {[%clk 0:00:27]} 33. Nc6 {[%clk 0:00:25]}  Bxc6 {[%clk 0:00:24]} 34. dxc6 {[%clk 0:00:26]}  Be5 {[%clk 0:00:24]} 35. Nf1 {[%clk 0:00:10]}  Rxb2 {[%clk 0:00:21]} 36. Qe3 {[%clk 0:00:10]}  Qc7 {[%clk 0:00:10]} 37. Rc1 {[%clk 0:00:10]}  Nf8 {[%clk 0:00:09]} 38. Bc4 {[%clk 0:00:08]}  Kg7 {[%clk 0:00:04]} 39. Bd5 {[%clk 0:00:07]}  Rb6 {[%clk 0:00:01]} 40. Nd2 {[%clk 0:00:07]}  Rb2 {[%clk 0:00:01]} 41. Nc4 {[%clk 0:00:07]} 1-0


[Site "https://www.chess.com"]

[Event "Titled Tuesday Blitz November 08 Late 2022"]
[White "Han, Yichen"]
[Black "Fernandez Siles, Luis"]
[WhiteFideId "1054430"]
[BlackFideId "2209420"]
[WhiteElo "2323"]
[BlackElo "2186"]
[Result "1-0"]
[Round "04"]
[TimeControl "180+1"]
[Date "2022.11.09"]
[WhiteClock "0:00:27"]
[BlackClock "0:00:07"]

1. b3 {[%clk 0:03:00]}  b6 {[%clk 0:02:57]} 2. Bb2 {[%clk 0:03:00]}  Bb7 {[%clk 0:02:57]} 3. Nf3 {[%clk 0:02:58]}  e6 {[%clk 0:02:58]} 4. g3 {[%clk 0:02:58]}  f5 {[%clk 0:02:58]} 5. Bg2 {[%clk 0:02:58]}  Nf6 {[%clk 0:02:58]} 6. O-O {[%clk 0:02:58]}  Be7 {[%clk 0:02:57]} 7. d3 {[%clk 0:02:58]}  O-O {[%clk 0:02:57]} 8. Nbd2 {[%clk 0:02:59]}  Qe8 {[%clk 0:02:48]} 9. e4 {[%clk 0:02:55]}  fxe4 {[%clk 0:02:36]} 10. Ng5 {[%clk 0:02:56]}  Nc6 {[%clk 0:02:22]} 11. Ngxe4 {[%clk 0:02:46]}  Nxe4 {[%clk 0:02:09]} 12. Nxe4 {[%clk 0:02:41]}  d5 {[%clk 0:02:07]} 13. Qg4 {[%clk 0:02:36]}  Qf7 {[%clk 0:01:48]} 14. Ng5 {[%clk 0:02:31]}  Bxg5 {[%clk 0:01:46]} 15. Qxg5 {[%clk 0:02:32]}  h6 {[%clk 0:01:11]} 16. Qg4 {[%clk 0:02:18]}  e5 {[%clk 0:01:05]} 17. c4 {[%clk 0:02:13]}  Nb4 {[%clk 0:00:33]} 18. Rad1 {[%clk 0:02:02]}  Rae8 {[%clk 0:00:26]} 19. a3 {[%clk 0:01:56]}  Na6 {[%clk 0:00:26]} 20. b4 {[%clk 0:01:47]}  c5 {[%clk 0:00:23]} 21. f4 {[%clk 0:01:41]}  d4 {[%clk 0:00:20]} 22. fxe5 {[%clk 0:01:37]}  Qc7 {[%clk 0:00:18]} 23. b5 {[%clk 0:01:20]}  Nb8 {[%clk 0:00:18]} 24. Bxb7 {[%clk 0:01:16]}  Qxb7 {[%clk 0:00:19]} 25. Bc1 {[%clk 0:01:15]}  Rxf1+ {[%clk 0:00:14]} 26. Rxf1 {[%clk 0:01:15]}  Rxe5 {[%clk 0:00:14]} 27. Bxh6 {[%clk 0:01:07]}  Qe7 {[%clk 0:00:15]} 28. Bf4 {[%clk 0:01:02]}  Re2 {[%clk 0:00:14]} 29. Qc8+ {[%clk 0:01:00]}  Kh7 {[%clk 0:00:13]} 30. Qh3+ {[%clk 0:00:59]}  Kg8 {[%clk 0:00:13]} 31. Qc8+ {[%clk 0:00:36]}  Kh7 {[%clk 0:00:12]} 32. Qxb8 {[%clk 0:00:35]}  Re1 {[%clk 0:00:10]} 33. Qb7 {[%clk 0:00:27]}  Qe2 {[%clk 0:00:07]} 34. Qe4+ {[%clk 0:00:28]}  Qxe4 {[%clk 0:00:06]} 35. dxe4 {[%clk 0:00:28]}  Rxe4 {[%clk 0:00:06]} 36. Rd1 {[%clk 0:00:27]}  Re2 {[%clk 0:00:05]} 37. Bb8 {[%clk 0:00:27]}  Ra2 {[%clk 0:00:05]} 38. Bxa7 {[%clk 0:00:26]}  Rxa3 {[%clk 0:00:06]} 39. Bxb6 {[%clk 0:00:27]}  Rc3 {[%clk 0:00:06]} 40. Bxc5 {[%clk 0:00:27]}  Rxc4 {[%clk 0:00:07]} 41. Bxd4 {[%clk 0:00:27]}  Rb4 {[%clk 0:00:07]} 42. b6 {[%clk 0:00:27]} 1-0


[Site "https://www.chess.com"]